[Event "Titled Tuesday Blitz November 29 Late 2022"]
[White "Gasparyan, David"]
[Black "Dimitrov, Atanas"]
[WhiteFideId "13311980"]
[BlackFideId "2901315"]
[WhiteElo "2326"]
[BlackElo "2669"]
[Result "1-0"]
[Round "01"]
[TimeControl "180+1"]
[Date "2022.11.30"]
[WhiteClock "0:00:25"]
[BlackClock "0:00:02"]

1. d4 {[%clk 0:02:47]}  Nf6 {[%clk 0:02:56]} 2. Nc3 {[%clk 0:02:44]}  d5 {[%clk 0:02:56]} 3. Bg5 {[%clk 0:02:37]}  e6 {[%clk 0:02:55]} 4. e4 {[%clk 0:02:36]}  dxe4 {[%clk 0:02:54]} 5. Nxe4 {[%clk 0:02:33]}  Be7 {[%clk 0:02:54]} 6. Bxf6 {[%clk 0:02:30]}  gxf6 {[%clk 0:02:53]} 7. Nf3 {[%clk 0:02:29]}  b6 {[%clk 0:02:46]} 8. Bb5+ {[%clk 0:02:26]}  Bd7 {[%clk 0:02:46]} 9. Bd3 {[%clk 0:02:24]}  Bc6 {[%clk 0:02:42]} 10. Qe2 {[%clk 0:02:22]}  Nd7 {[%clk 0:02:42]} 11. O-O-O {[%clk 0:02:14]}  f5 {[%clk 0:02:37]} 12. Ng3 {[%clk 0:02:09]}  Nf6 {[%clk 0:02:37]} 13. Ne5 {[%clk 0:02:08]}  Bd7 {[%clk 0:02:26]} 14. Rhe1 {[%clk 0:02:06]}  c6 {[%clk 0:02:18]} 15. Nh5 {[%clk 0:02:05]}  Nd5 {[%clk 0:02:08]} 16. c3 {[%clk 0:01:55]}  Bg5+ {[%clk 0:02:01]} 17. Kb1 {[%clk 0:01:55]}  Qe7 {[%clk 0:02:01]} 18. Ng7+ {[%clk 0:01:29]}  Kd8 {[%clk 0:01:53]} 19. Nh5 {[%clk 0:01:28]}  Kc7 {[%clk 0:01:50]} 20. a3 {[%clk 0:01:20]}  Rhg8 {[%clk 0:01:47]} 21. g3 {[%clk 0:01:19]}  Nf6 {[%clk 0:01:32]} 22. c4 {[%clk 0:01:13]}  Rad8 {[%clk 0:01:21]} 23. f4 {[%clk 0:01:10]}  Bh6 {[%clk 0:01:18]} 24. Nxf6 {[%clk 0:01:06]}  Qxf6 {[%clk 0:01:19]} 25. Qf3 {[%clk 0:01:07]}  Be8 {[%clk 0:01:09]} 26. Bc2 {[%clk 0:00:57]}  Bf8 {[%clk 0:01:07]} 27. Ba4 {[%clk 0:00:57]}  Rd6 {[%clk 0:01:04]} 28. c5 {[%clk 0:00:56]}  Rd5 {[%clk 0:00:59]} 29. cxb6+ {[%clk 0:00:54]}  axb6 {[%clk 0:01:00]} 30. Rc1 {[%clk 0:00:54]}  b5 {[%clk 0:00:58]} 31. Bxb5 {[%clk 0:00:51]}  Rxb5 {[%clk 0:00:48]} 32. Rxc6+ {[%clk 0:00:51]}  Kb8 {[%clk 0:00:39]} 33. Ra6 {[%clk 0:00:48]}  Rb7 {[%clk 0:00:38]} 34. Rc1 {[%clk 0:00:45]}  Bb5 {[%clk 0:00:34]} 35. Nc6+ {[%clk 0:00:27]}  Bxc6 {[%clk 0:00:21]} 36. Qxc6 {[%clk 0:00:28]}  Qd8 {[%clk 0:00:20]} 37. Qa4 {[%clk 0:00:26]}  Rc7 {[%clk 0:00:01]} 38. Ra8+ {[%clk 0:00:25]}  Kb7 {[%clk 0:00:02]} 39. Qa6# {[%clk 0:00:25]} 1-0


[Site "https://www.chess.com"]

[Event "Titled Tuesday Blitz November 29 Late 2022"]
[White "Gatterer, Florian"]
[Black "Stearman, Josiah"]
[WhiteFideId "811688"]
[BlackFideId "2062496"]
[WhiteElo "2218"]
[BlackElo "2402"]
[Result "1/2-1/2"]
[Round "01"]
[TimeControl "180+1"]
[Date "2022.11.30"]
[WhiteClock "0:00:12"]
[BlackClock "0:00:07"]

1. c4 {[%clk 0:02:59]}  e5 {[%clk 0:02:58]} 2. Nc3 {[%clk 0:02:58]}  Nc6 {[%clk 0:02:58]} 3. Nf3 {[%clk 0:02:55]}  Bc5 {[%clk 0:02:55]} 4. e3 {[%clk 0:02:52]}  d6 {[%clk 0:02:53]} 5. Be2 {[%clk 0:02:45]}  a6 {[%clk 0:02:53]} 6. d4 {[%clk 0:02:44]}  exd4 {[%clk 0:02:52]} 7. exd4 {[%clk 0:02:44]}  Ba7 {[%clk 0:02:52]} 8. O-O {[%clk 0:02:43]}  Nge7 {[%clk 0:02:48]} 9. d5 {[%clk 0:02:42]}  Ne5 {[%clk 0:02:48]} 10. Nxe5 {[%clk 0:02:39]}  dxe5 {[%clk 0:02:49]} 11. Be3 {[%clk 0:02:39]}  Bxe3 {[%clk 0:02:48]} 12. fxe3 {[%clk 0:02:40]}  Nf5 {[%clk 0:02:43]} 13. Qd3 {[%clk 0:02:14]}  Qg5 {[%clk 0:02:35]} 14. Rf3 {[%clk 0:02:14]}  O-O {[%clk 0:02:29]} 15. Ne4 {[%clk 0:02:13]}  Qe7 {[%clk 0:02:26]} 16. Raf1 {[%clk 0:02:11]}  Nd6 {[%clk 0:02:26]} 17. Nxd6 {[%clk 0:02:02]}  cxd6 {[%clk 0:02:26]} 18. e4 {[%clk 0:01:59]}  f5 {[%clk 0:02:27]} 19. R3f2 {[%clk 0:01:47]}  f4 {[%clk 0:02:24]} 20. g3 {[%clk 0:01:47]}  Bh3 {[%clk 0:02:23]} 21. Re1 {[%clk 0:01:45]}  Qg5 {[%clk 0:02:15]} 22. Bf1 {[%clk 0:01:34]}  Bd7 {[%clk 0:02:10]} 23. Bg2 {[%clk 0:01:22]}  fxg3 {[%clk 0:02:05]} 24. Qxg3 {[%clk 0:01:19]}  Qxg3 {[%clk 0:02:04]} 25. hxg3 {[%clk 0:01:20]}  Rxf2 {[%clk 0:02:04]} 26. Kxf2 {[%clk 0:01:20]}  b6 {[%clk 0:02:01]} 27. Ke3 {[%clk 0:01:07]}  a5 {[%clk 0:01:59]} 28. b3 {[%clk 0:01:06]}  Rf8 {[%clk 0:01:59]} 29. Rf1 {[%clk 0:01:05]}  Rxf1 {[%clk 0:01:58]} 30. Bxf1 {[%clk 0:01:06]}  Kf7 {[%clk 0:01:57]} 31. a3 {[%clk 0:01:05]}  Kf6 {[%clk 0:01:52]} 32. Be2 {[%clk 0:01:00]}  Kg5 {[%clk 0:01:50]} 33. b4 {[%clk 0:01:00]}  axb4 {[%clk 0:01:50]} 34. axb4 {[%clk 0:01:00]}  h5 {[%clk 0:01:48]} 35. Bd1 {[%clk 0:00:40]}  h4 {[%clk 0:01:45]} 36. gxh4+ {[%clk 0:00:40]}  Kxh4 {[%clk 0:01:46]} 37. Kf2 {[%clk 0:00:35]}  g5 {[%clk 0:01:43]} 38. Bf3 {[%clk 0:00:35]}  g4 {[%clk 0:01:43]} 39. Bg2 {[%clk 0:00:35]}  Ba4 {[%clk 0:01:28]} 40. Bf1 {[%clk 0:00:32]}  g3+ {[%clk 0:01:27]} 41. Ke3 {[%clk 0:00:31]}  Kg4 {[%clk 0:01:25]} 42. Bg2 {[%clk 0:00:30]}  Bb3 {[%clk 0:01:18]} 43. c5 {[%clk 0:00:26]}  bxc5 {[%clk 0:01:18]} 44. bxc5 {[%clk 0:00:27]}  dxc5 {[%clk 0:01:19]} 45. d6 {[%clk 0:00:27]}  Be6 {[%clk 0:01:19]} 46. Bf1 {[%clk 0:00:21]}  c4 {[%clk 0:01:11]} 47. Bxc4 {[%clk 0:00:19]}  Bd7 {[%clk 0:00:52]} 48. Bf1 {[%clk 0:00:18]}  Kh4 {[%clk 0:00:52]} 49. Bg2 {[%clk 0:00:17]}  Bh3 {[%clk 0:00:49]} 50. Kf3 {[%clk 0:00:17]}  Bc8 {[%clk 0:00:44]} 51. Ke3 {[%clk 0:00:16]}  Bd7 {[%clk 0:00:44]} 52. Bf1 {[%clk 0:00:16]}  Kg4 {[%clk 0:00:45]} 53. Bg2 {[%clk 0:00:16]}  Bb5 {[%clk 0:00:45]} 54. Bf1 {[%clk 0:00:13]}  Ba4 {[%clk 0:00:35]} 55. Bg2 {[%clk 0:00:13]}  Be8 {[%clk 0:00:24]} 56. Bf1 {[%clk 0:00:12]}  Bc6 {[%clk 0:00:13]} 57. Bg2 {[%clk 0:00:12]}  Bd7 {[%clk 0:00:08]} 58. Bf1 {[%clk 0:00:12]}  Be8 {[%clk 0:00:07]} 59. Bg2 {[%clk 0:00:12]}  Bd7 {[%clk 0:00:07]} 60. Bf1 {[%clk 0:00:12]} 1/2-1/2


[Site "https://www.chess.com"]

[Event "Titled Tuesday Blitz November 29 Late 2022"]
[White "Girsh, Daniel"]
[Black "Deac, Bogdan-Daniel"]
[WhiteFideId "30949190"]
[BlackFideId "1226380"]
[WhiteElo "2530"]
[BlackElo "3070"]
[Result "0-1"]
[Round "01"]
[TimeControl "180+1"]
[Date "2022.11.30"]
[WhiteClock "0:00:06"]
[BlackClock "0:00:08"]

1. e4 {[%clk 0:03:00]}  c5 {[%clk 0:02:56]} 2. Nf3 {[%clk 0:03:01]}  a6 {[%clk 0:02:55]} 3. c4 {[%clk 0:03:00]}  d6 {[%clk 0:02:54]} 4. Nc3 {[%clk 0:02:59]}  e5 {[%clk 0:02:54]} 5. Be2 {[%clk 0:02:54]}  Nc6 {[%clk 0:02:53]} 6. O-O {[%clk 0:02:55]}  g6 {[%clk 0:02:52]} 7. Nd5 {[%clk 0:02:54]}  Bg7 {[%clk 0:02:51]} 8. a3 {[%clk 0:02:53]}  Nge7 {[%clk 0:02:51]} 9. b4 {[%clk 0:02:53]}  O-O {[%clk 0:02:46]} 10. Rb1 {[%clk 0:02:50]}  f5 {[%clk 0:02:39]} 11. d3 {[%clk 0:02:47]}  f4 {[%clk 0:02:39]} 12. bxc5 {[%clk 0:02:15]}  dxc5 {[%clk 0:02:37]} 13. Nb6 {[%clk 0:02:16]}  Rb8 {[%clk 0:02:36]} 14. Nxc8 {[%clk 0:02:17]}  Qxc8 {[%clk 0:02:31]} 15. Ng5 {[%clk 0:02:16]}  Nd8 {[%clk 0:02:13]} 16. Bg4 {[%clk 0:02:16]}  Qc6 {[%clk 0:02:13]} 17. Bd2 {[%clk 0:01:53]}  h6 {[%clk 0:01:59]} 18. Nf3 {[%clk 0:01:52]}  b6 {[%clk 0:01:59]} 19. Bc3 {[%clk 0:01:48]}  Nf7 {[%clk 0:01:56]} 20. h4 {[%clk 0:01:44]}  Rbd8 {[%clk 0:01:36]} 21. Qc2 {[%clk 0:01:42]}  Qc7 {[%clk 0:01:25]} 22. h5 {[%clk 0:01:41]}  g5 {[%clk 0:01:24]} 23. Be6 {[%clk 0:01:39]}  Qd6 {[%clk 0:01:09]} 24. Bg4 {[%clk 0:01:39]}  Rb8 {[%clk 0:01:03]} 25. a4 {[%clk 0:01:35]}  a5 {[%clk 0:00:43]} 26. Rb5 {[%clk 0:01:35]}  Nc6 {[%clk 0:00:43]} 27. Rfb1 {[%clk 0:01:31]}  Nb4 {[%clk 0:00:43]} 28. Bxb4 {[%clk 0:01:31]}  axb4 {[%clk 0:00:43]} 29. a5 {[%clk 0:01:31]}  bxa5 {[%clk 0:00:43]} 30. Rxa5 {[%clk 0:01:31]}  Rfd8 {[%clk 0:00:40]} 31. Ne1 {[%clk 0:01:24]}  Qb6 {[%clk 0:00:38]} 32. Rb5 {[%clk 0:01:22]}  Qa7 {[%clk 0:00:37]} 33. Qb2 {[%clk 0:01:17]}  Nd6 {[%clk 0:00:29]} 34. Ra1 {[%clk 0:01:14]}  Nxb5 {[%clk 0:00:24]} 35. Rxa7 {[%clk 0:01:14]}  Nxa7 {[%clk 0:00:25]} 36. Nf3 {[%clk 0:01:05]}  Nc6 {[%clk 0:00:18]} 37. Be6+ {[%clk 0:01:04]}  Kh8 {[%clk 0:00:18]} 38. Bd5 {[%clk 0:01:05]}  Nd4 {[%clk 0:00:17]} 39. Nxd4 {[%clk 0:00:44]}  exd4 {[%clk 0:00:18]} 40. Qb3 {[%clk 0:00:41]}  Rd6 {[%clk 0:00:18]} 41. Kh2 {[%clk 0:00:33]}  Ra6 {[%clk 0:00:17]} 42. e5 {[%clk 0:00:31]}  Bxe5 {[%clk 0:00:14]} 43. Qd1 {[%clk 0:00:31]}  b3 {[%clk 0:00:12]} 44. Qe2 {[%clk 0:00:31]}  Bg7 {[%clk 0:00:11]} 45. Bb7 {[%clk 0:00:18]}  Rb6 {[%clk 0:00:10]} 46. Bd5 {[%clk 0:00:14]}  b2 {[%clk 0:00:09]} 47. Qe7 {[%clk 0:00:11]}  b1=Q {[%clk 0:00:09]} 48. Qf7 {[%clk 0:00:12]}  Qxd3 {[%clk 0:00:08]} 49. f3 {[%clk 0:00:09]}  Rf6 {[%clk 0:00:06]} 50. Qe7 {[%clk 0:00:09]}  Rbf8 {[%clk 0:00:06]} 51. Be4 {[%clk 0:00:09]}  Qe3 {[%clk 0:00:06]} 52. Qe5 {[%clk 0:00:09]}  d3 {[%clk 0:00:06]} 53. Qd5 {[%clk 0:00:08]}  d2 {[%clk 0:00:06]} 54. Qd7 {[%clk 0:00:08]}  Qd4 {[%clk 0:00:06]} 55. Qa4 {[%clk 0:00:06]}  d1=Q {[%clk 0:00:06]} 56. Qa7 {[%clk 0:00:07]}  Qxe4 {[%clk 0:00:06]} 57. fxe4 {[%clk 0:00:07]}  Qxh5+ {[%clk 0:00:06]} 58. Kg1 {[%clk 0:00:07]}  f3 {[%clk 0:00:07]} 59. Qe7 {[%clk 0:00:06]}  f2+ {[%clk 0:00:07]} 60. Kf1 {[%clk 0:00:06]}  Qd1# {[%clk 0:00:08]} 0-1


[Site "https://www.chess.com"]

[Event "Titled Tuesday Blitz November 29 Late 2022"]
[White "Goltsev, Dmitry"]
[Black "Vasques, Antonio Pedro Freixial"]
[WhiteFideId "24176710"]
[BlackFideId "1908332"]
[WhiteElo "2289"]
[BlackElo "2243"]
[Result "1-0"]
[Round "01"]
[TimeControl "180+1"]
[Date "2022.11.30"]
[WhiteClock "0:00:15"]
[BlackClock "0:00:03"]

1. e4 {[%clk 0:03:00]}  c5 {[%clk 0:02:58]} 2. Nf3 {[%clk 0:03:01]}  Nc6 {[%clk 0:02:58]} 3. d4 {[%clk 0:03:01]}  cxd4 {[%clk 0:02:58]} 4. Nxd4 {[%clk 0:03:02]}  e5 {[%clk 0:02:59]} 5. Nb5 {[%clk 0:03:01]}  d6 {[%clk 0:02:59]} 6. N1c3 {[%clk 0:03:02]}  a6 {[%clk 0:02:59]} 7. Na3 {[%clk 0:03:03]}  b5 {[%clk 0:03:00]} 8. Nd5 {[%clk 0:03:03]}  Nge7 {[%clk 0:03:01]} 9. Be3 {[%clk 0:03:03]}  Nxd5 {[%clk 0:02:57]} 10. exd5 {[%clk 0:03:04]}  Ne7 {[%clk 0:02:57]} 11. c4 {[%clk 0:03:04]}  b4 {[%clk 0:02:57]} 12. Qa4+ {[%clk 0:03:03]}  Bd7 {[%clk 0:02:55]} 13. Qxb4 {[%clk 0:03:03]}  Rb8 {[%clk 0:02:53]} 14. Qxd6 {[%clk 0:03:00]}  Nc6 {[%clk 0:02:50]} 15. dxc6 {[%clk 0:02:45]}  Bxd6 {[%clk 0:02:48]} 16. cxd7+ {[%clk 0:02:46]}  Qxd7 {[%clk 0:02:46]} 17. c5 {[%clk 0:02:46]}  Be7 {[%clk 0:02:30]} 18. Nc4 {[%clk 0:02:46]}  O-O {[%clk 0:02:30]} 19. Be2 {[%clk 0:02:44]}  Qc7 {[%clk 0:02:25]} 20. O-O {[%clk 0:02:42]}  Bxc5 {[%clk 0:02:25]} 21. Rac1 {[%clk 0:02:26]}  Bxe3 {[%clk 0:02:18]} 22. Nxe3 {[%clk 0:02:26]}  Qa5 {[%clk 0:02:18]} 23. a3 {[%clk 0:02:25]}  Qd2 {[%clk 0:02:00]} 24. Rc2 {[%clk 0:02:22]}  Qa5 {[%clk 0:01:50]} 25. Bc4 {[%clk 0:02:21]}  Kh8 {[%clk 0:01:47]} 26. h3 {[%clk 0:02:09]}  f5 {[%clk 0:01:47]} 27. Be6 {[%clk 0:02:06]}  e4 {[%clk 0:01:36]} 28. Rfc1 {[%clk 0:01:57]}  f4 {[%clk 0:01:34]} 29. Nd5 {[%clk 0:01:54]}  f3 {[%clk 0:01:32]} 30. Ne3 {[%clk 0:01:51]}  Qe5 {[%clk 0:01:30]} 31. Rc6 {[%clk 0:01:47]}  Qxb2 {[%clk 0:01:22]} 32. g4 {[%clk 0:01:43]}  Qxa3 {[%clk 0:01:19]} 33. Bf5 {[%clk 0:01:28]}  Qd3 {[%clk 0:01:15]} 34. R1c3 {[%clk 0:01:14]}  Rb1+ {[%clk 0:01:12]} 35. Kh2 {[%clk 0:01:13]}  Qe2 {[%clk 0:01:10]} 36. Rc2 {[%clk 0:01:10]}  Qe1 {[%clk 0:01:02]} 37. h4 {[%clk 0:00:52]}  Qg1+ {[%clk 0:00:58]} 38. Kh3 {[%clk 0:00:51]}  h5 {[%clk 0:00:44]} 39. Rg6 {[%clk 0:00:49]}  hxg4+ {[%clk 0:00:29]} 40. Rxg4 {[%clk 0:00:41]}  Qh1+ {[%clk 0:00:29]} 41. Kg3 {[%clk 0:00:41]}  Rg1+ {[%clk 0:00:29]} 42. Kf4 {[%clk 0:00:41]}  Rxg4+ {[%clk 0:00:30]} 43. Kxg4 {[%clk 0:00:37]}  a5 {[%clk 0:00:30]} 44. Bxe4 {[%clk 0:00:30]}  Qg1+ {[%clk 0:00:25]} 45. Kh5 {[%clk 0:00:29]}  a4 {[%clk 0:00:23]} 46. Ng4 {[%clk 0:00:23]}  a3 {[%clk 0:00:18]} 47. Ne5 {[%clk 0:00:22]}  g6+ {[%clk 0:00:05]} 48. Kh6 {[%clk 0:00:19]}  Kg8 {[%clk 0:00:03]} 49. Bd5+ {[%clk 0:00:18]}  Kh8 {[%clk 0:00:03]} 50. Nf7+ {[%clk 0:00:17]}  Kg8 {[%clk 0:00:03]} 51. Ng5+ {[%clk 0:00:15]}  Kh8 {[%clk 0:00:03]} 52. Rc7 {[%clk 0:00:15]} 1-0


[Site "https://www.chess.com"]

[Event "Titled Tuesday Blitz November 29 Late 2022"]
[White "Gonzalez, Francisco Silva"]
[Black "Boruchovsky, Avital"]
[WhiteFideId "1512285"]
[BlackFideId "2800055"]
[WhiteElo "2159"]
[BlackElo "2458"]
[Result "0-1"]
[Round "01"]
[TimeControl "180+1"]
[Date "2022.11.30"]
[WhiteClock "0:01:05"]
[BlackClock "0:00:15"]

1. d4 {[%clk 0:02:58]}  Nf6 {[%clk 0:02:55]} 2. c4 {[%clk 0:02:58]}  e5 {[%clk 0:02:54]} 3. dxe5 {[%clk 0:02:57]}  Ng4 {[%clk 0:02:53]} 4. e3 {[%clk 0:02:57]}  Nxe5 {[%clk 0:02:53]} 5. Nh3 {[%clk 0:02:58]}  Nbc6 {[%clk 0:02:48]} 6. Nf4 {[%clk 0:02:58]}  g6 {[%clk 0:02:48]} 7. h4 {[%clk 0:02:57]}  h5 {[%clk 0:02:40]} 8. Nc3 {[%clk 0:02:55]}  Bg7 {[%clk 0:02:38]} 9. Be2 {[%clk 0:02:54]}  d6 {[%clk 0:02:38]} 10. Qd2 {[%clk 0:02:53]}  O-O {[%clk 0:02:36]} 11. b3 {[%clk 0:02:51]}  Bg4 {[%clk 0:02:11]} 12. f3 {[%clk 0:02:49]}  Bd7 {[%clk 0:02:09]} 13. Bb2 {[%clk 0:02:49]}  a6 {[%clk 0:02:08]} 14. Ncd5 {[%clk 0:02:46]}  Re8 {[%clk 0:02:02]} 15. Rc1 {[%clk 0:02:39]}  b5 {[%clk 0:01:57]} 16. cxb5 {[%clk 0:02:39]}  axb5 {[%clk 0:01:58]} 17. Ba1 {[%clk 0:02:34]}  Qb8 {[%clk 0:01:34]} 18. Kf2 {[%clk 0:02:30]}  Ra7 {[%clk 0:01:19]} 19. Rc2 {[%clk 0:02:30]}  Ne7 {[%clk 0:01:18]} 20. Nxe7+ {[%clk 0:02:29]}  Rxe7 {[%clk 0:01:19]} 21. Nd5 {[%clk 0:02:28]}  Re8 {[%clk 0:01:19]} 22. f4 {[%clk 0:02:02]}  c6 {[%clk 0:01:19]} 23. fxe5 {[%clk 0:02:01]}  cxd5 {[%clk 0:01:20]} 24. Qxd5 {[%clk 0:01:49]}  Bxe5 {[%clk 0:01:13]} 25. Bd4 {[%clk 0:01:41]}  Rc7 {[%clk 0:01:03]} 26. Rhc1 {[%clk 0:01:38]}  Rxc2 {[%clk 0:01:01]} 27. Rxc2 {[%clk 0:01:37]}  Qd8 {[%clk 0:00:52]} 28. g3 {[%clk 0:01:37]}  Qf6+ {[%clk 0:00:51]} 29. Kg2 {[%clk 0:01:33]}  Bf5 {[%clk 0:00:48]} 30. Bxb5 {[%clk 0:01:30]}  Re7 {[%clk 0:00:26]} 31. Bd3 {[%clk 0:01:13]}  Bxd3 {[%clk 0:00:21]} 32. Rc8+ {[%clk 0:01:13]}  Kh7 {[%clk 0:00:19]} 33. Rh8+ {[%clk 0:01:08]}  Kxh8 {[%clk 0:00:17]} 34. Bxe5 {[%clk 0:01:08]}  Bf1+ {[%clk 0:00:16]} 35. Kg1 {[%clk 0:01:09]}  Qxe5 {[%clk 0:00:16]} 36. Qa8+ {[%clk 0:01:07]}  Kg7 {[%clk 0:00:15]} 37. Kxf1 {[%clk 0:01:07]}  Qxe3 {[%clk 0:00:15]} 38. Qd5 {[%clk 0:01:06]}  Qe1+ {[%clk 0:00:15]} 39. Kg2 {[%clk 0:01:05]}  Re2+ {[%clk 0:00:15]} 0-1


[Site "https://www.chess.com"]

[Event "Titled Tuesday Blitz November 29 Late 2022"]
[White "Gorodetzky, David"]
[Black "D`Arruda, Ricardo D."]
[WhiteFideId "2813416"]
[BlackFideId "100692"]
[WhiteElo "2497"]
[BlackElo "2457"]
[Result "0-1"]
[Round "01"]
[TimeControl "180+1"]
[Date "2022.11.30"]
[WhiteClock "0:00:02"]
[BlackClock "0:00:09"]

1. e4 {[%clk 0:02:49]}  c5 {[%clk 0:02:58]} 2. Nf3 {[%clk 0:02:44]}  Nc6 {[%clk 0:02:59]} 3. Bb5 {[%clk 0:02:43]}  g6 {[%clk 0:02:58]} 4. O-O {[%clk 0:02:40]}  Bg7 {[%clk 0:02:57]} 5. Re1 {[%clk 0:02:39]}  Nf6 {[%clk 0:02:56]} 6. Bxc6 {[%clk 0:02:28]}  dxc6 {[%clk 0:02:57]} 7. d3 {[%clk 0:02:26]}  O-O {[%clk 0:02:56]} 8. Bd2 {[%clk 0:02:25]}  Nd7 {[%clk 0:02:53]} 9. Qc1 {[%clk 0:02:24]}  Re8 {[%clk 0:02:51]} 10. a4 {[%clk 0:02:23]}  a5 {[%clk 0:02:50]} 11. Na3 {[%clk 0:02:23]}  e5 {[%clk 0:02:42]} 12. Nc4 {[%clk 0:02:21]}  Qc7 {[%clk 0:02:39]} 13. Bc3 {[%clk 0:02:21]}  f6 {[%clk 0:02:37]} 14. Nfd2 {[%clk 0:02:21]}  Nf8 {[%clk 0:02:35]} 15. f4 {[%clk 0:02:02]}  exf4 {[%clk 0:02:33]} 16. e5 {[%clk 0:02:02]}  fxe5 {[%clk 0:02:29]} 17. Nf3 {[%clk 0:02:03]}  Nd7 {[%clk 0:02:08]} 18. Nfxe5 {[%clk 0:02:01]}  Nxe5 {[%clk 0:02:07]} 19. Qxf4 {[%clk 0:02:02]}  Bf5 {[%clk 0:01:16]} 20. Bxe5 {[%clk 0:02:00]}  Bxe5 {[%clk 0:01:15]} 21. Rxe5 {[%clk 0:01:53]}  Rxe5 {[%clk 0:01:14]} 22. Qxe5 {[%clk 0:01:54]}  Qxe5 {[%clk 0:01:13]} 23. Nxe5 {[%clk 0:01:55]}  Re8 {[%clk 0:01:12]} 24. Re1 {[%clk 0:01:09]}  c4 {[%clk 0:01:11]} 25. Kf2 {[%clk 0:01:05]}  cxd3 {[%clk 0:01:10]} 26. Nxd3 {[%clk 0:01:05]}  Rxe1 {[%clk 0:01:01]} 27. Nxe1 {[%clk 0:01:06]}  Kf7 {[%clk 0:01:01]} 28. Ke3 {[%clk 0:01:06]}  Ke6 {[%clk 0:01:00]} 29. Kd4 {[%clk 0:01:04]}  b6 {[%clk 0:00:57]} 30. c3 {[%clk 0:00:31]}  c5+ {[%clk 0:00:56]} 31. Kc4 {[%clk 0:00:26]}  Kd6 {[%clk 0:00:56]} 32. b4 {[%clk 0:00:23]}  cxb4 {[%clk 0:00:46]} 33. cxb4 {[%clk 0:00:23]}  Bd7 {[%clk 0:00:45]} 34. b5 {[%clk 0:00:18]}  Bf5 {[%clk 0:00:41]} 35. Kd4 {[%clk 0:00:15]}  h6 {[%clk 0:00:35]} 36. g3 {[%clk 0:00:12]}  h5 {[%clk 0:00:33]} 37. h4 {[%clk 0:00:12]}  Ke6 {[%clk 0:00:33]} 38. Nf3 {[%clk 0:00:09]}  Bc2 {[%clk 0:00:32]} 39. Ne5 {[%clk 0:00:06]}  Kd6 {[%clk 0:00:23]} 40. Nc4+ {[%clk 0:00:03]}  Kc7 {[%clk 0:00:24]} 41. Nb2 {[%clk 0:00:04]}  Kd6 {[%clk 0:00:23]} 42. Kc3 {[%clk 0:00:02]}  Be4 {[%clk 0:00:18]} 43. Kd4 {[%clk 0:00:02]}  Bc2 {[%clk 0:00:17]} 44. Kc3 {[%clk 0:00:03]}  Be4 {[%clk 0:00:17]} 45. Nc4+ {[%clk 0:00:03]}  Kc7 {[%clk 0:00:16]} 46. Ne5 {[%clk 0:00:02]}  Kd6 {[%clk 0:00:15]} 47. Kd4 {[%clk 0:00:03]}  Bc2 {[%clk 0:00:15]} 48. Nf7+ {[%clk 0:00:03]}  Kc7 {[%clk 0:00:14]} 49. Ne5 {[%clk 0:00:02]}  Bxa4 {[%clk 0:00:13]} 50. Nxg6 {[%clk 0:00:02]}  Bxb5 {[%clk 0:00:14]} 51. Nf4 {[%clk 0:00:02]}  Be8 {[%clk 0:00:15]} 52. Nd5+ {[%clk 0:00:02]}  Kb7 {[%clk 0:00:14]} 53. Nf6 {[%clk 0:00:02]}  Bf7 {[%clk 0:00:14]} 54. Nd7 {[%clk 0:00:02]}  a4 {[%clk 0:00:14]} 55. Ne5 {[%clk 0:00:03]}  Be8 {[%clk 0:00:13]} 56. Kc3 {[%clk 0:00:03]}  Ka6 {[%clk 0:00:13]} 57. Kb4 {[%clk 0:00:04]}  b5 {[%clk 0:00:10]} 58. Nd3 {[%clk 0:00:02]}  Kb6 {[%clk 0:00:11]} 59. Ne5 {[%clk 0:00:03]}  Ka6 {[%clk 0:00:11]} 60. Nd3 {[%clk 0:00:02]}  Kb6 {[%clk 0:00:11]} 61. Ne5 {[%clk 0:00:03]}  Kc7 {[%clk 0:00:10]} 62. Kc5 {[%clk 0:00:02]}  a3 {[%clk 0:00:09]} 0-1


[Site "https://www.chess.com"]

[Event "Titled Tuesday Blitz November 29 Late 2022"]
[White "Grot, Blazej"]
[Black "Tisaj, Domen"]
[WhiteFideId "21835845"]
[BlackFideId "14628708"]
[WhiteElo "1822"]
[BlackElo "2352"]
[Result "0-1"]
[Round "01"]
[TimeControl "180+1"]
[Date "2022.11.30"]
[WhiteClock "0:00:05"]
[BlackClock "0:00:20"]

1. e4 {[%clk 0:02:58]}  e5 {[%clk 0:02:50]} 2. Nf3 {[%clk 0:02:57]}  Nf6 {[%clk 0:02:50]} 3. Nxe5 {[%clk 0:02:56]}  d6 {[%clk 0:02:50]} 4. Nf3 {[%clk 0:02:56]}  Nxe4 {[%clk 0:02:50]} 5. d4 {[%clk 0:02:48]}  d5 {[%clk 0:02:50]} 6. Bd3 {[%clk 0:02:48]}  Nc6 {[%clk 0:02:50]} 7. O-O {[%clk 0:02:48]}  Be7 {[%clk 0:02:50]} 8. Re1 {[%clk 0:02:48]}  Bf5 {[%clk 0:02:47]} 9. c4 {[%clk 0:02:47]}  Nb4 {[%clk 0:02:43]} 10. Bxe4 {[%clk 0:02:42]}  dxe4 {[%clk 0:02:40]} 11. Ne5 {[%clk 0:02:24]}  O-O {[%clk 0:02:37]} 12. a3 {[%clk 0:02:08]}  Nd3 {[%clk 0:02:35]} 13. Nxd3 {[%clk 0:02:05]}  exd3 {[%clk 0:02:36]} 14. d5 {[%clk 0:02:04]}  Bf6 {[%clk 0:02:31]} 15. Nc3 {[%clk 0:02:00]}  Qd7 {[%clk 0:02:23]} 16. Bf4 {[%clk 0:01:53]}  Rfe8 {[%clk 0:02:21]} 17. Qd2 {[%clk 0:01:53]}  c6 {[%clk 0:02:14]} 18. d6 {[%clk 0:01:51]}  a5 {[%clk 0:01:53]} 19. c5 {[%clk 0:01:49]}  a4 {[%clk 0:01:47]} 20. Rxe8+ {[%clk 0:01:30]}  Rxe8 {[%clk 0:01:47]} 21. Nxa4 {[%clk 0:01:21]}  Re2 {[%clk 0:01:45]} 22. Qa5 {[%clk 0:01:20]}  g5 {[%clk 0:01:38]} 23. Be3 {[%clk 0:01:05]}  Qe6 {[%clk 0:01:38]} 24. Rd1 {[%clk 0:00:37]}  Qb3 {[%clk 0:01:32]} 25. Nc3 {[%clk 0:00:13]}  Bxc3 {[%clk 0:01:18]} 26. Qd8+ {[%clk 0:00:12]}  Kg7 {[%clk 0:01:18]} 27. Qxg5+ {[%clk 0:00:13]}  Bg6 {[%clk 0:01:19]} 28. Rf1 {[%clk 0:00:04]}  Bxb2 {[%clk 0:01:13]} 29. Qh6+ {[%clk 0:00:04]}  Kg8 {[%clk 0:01:12]} 30. d7 {[%clk 0:00:04]}  Bf6 {[%clk 0:01:10]} 31. Qf4 {[%clk 0:00:03]}  Qe6 {[%clk 0:00:53]} 32. Qb8+ {[%clk 0:00:03]}  Kg7 {[%clk 0:00:54]} 33. d8=Q {[%clk 0:00:04]}  Bxd8 {[%clk 0:00:54]} 34. Qxd8 {[%clk 0:00:05]}  Rxe3 {[%clk 0:00:36]} 35. fxe3 {[%clk 0:00:04]}  Qxe3+ {[%clk 0:00:37]} 36. Kh1 {[%clk 0:00:04]}  Qxc5 {[%clk 0:00:33]} 37. Qf6+ {[%clk 0:00:05]}  Kg8 {[%clk 0:00:34]} 38. Qd8+ {[%clk 0:00:05]}  Qf8 {[%clk 0:00:34]} 39. Qf6 {[%clk 0:00:06]}  Qxa3 {[%clk 0:00:33]} 40. Qd8+ {[%clk 0:00:03]}  Qf8 {[%clk 0:00:33]} 41. Qd4 {[%clk 0:00:03]}  c5 {[%clk 0:00:23]} 42. Qd5 {[%clk 0:00:03]}  Qe7 {[%clk 0:00:20]} 43. Ra1 {[%clk 0:00:03]}  Kg7 {[%clk 0:00:19]} 44. Qf3 {[%clk 0:00:02]}  Qf6 {[%clk 0:00:19]} 45. Rf1 {[%clk 0:00:02]}  Qxf3 {[%clk 0:00:19]} 46. gxf3 {[%clk 0:00:03]}  c4 {[%clk 0:00:19]} 47. Kg2 {[%clk 0:00:04]}  c3 {[%clk 0:00:20]} 48. Kf2 {[%clk 0:00:04]}  d2 {[%clk 0:00:19]} 49. Ke2 {[%clk 0:00:05]}  Bc2 {[%clk 0:00:20]} 50. Rg1+ {[%clk 0:00:03]}  Kf6 {[%clk 0:00:19]} 51. f4 {[%clk 0:00:02]}  b5 {[%clk 0:00:19]} 52. Rd1 {[%clk 0:00:03]}  Bxd1+ {[%clk 0:00:19]} 53. Kxd1 {[%clk 0:00:04]}  b4 {[%clk 0:00:19]} 54. Kc2 {[%clk 0:00:05]}  Kf5 {[%clk 0:00:20]} 0-1


[Site "https://www.chess.com"]